Cogmind - Beta 9.1 @@@ ROGUE MODE // 2019.10.31 @ 16:18:36 // Halloween2019/Abominations Player: SHADOWELITE7 Result: Destroyed by Lesser Abomination with Shotgun Performance ------------- Evolutions (0) 0 Regions Visited (1) 200 Robots Destroyed (3) 15 Value Destroyed (141) 141 Prototype IDs (0) 0 Alien Tech Used (0) 0 Bonus (0) 0 TOTAL SCORE: 356 Bonus ------- None Cogmind --------- Core Integrity 0/250 Matter 300/300 Energy 250/250 System Corruption 0% Temperature Cool (0) Location -10/Materials Parts ------- Power (1) Ion Engine Propulsion (2) Utility (2) Small Storage Unit Weapon (2) Inventory (6) Ion Engine Wheel Medium Laser Light Assault Rifle Light Assault Rifle Peak State ------------ Power Ion Engine Propulsion Light Treads Wheel Utility Small Storage Unit Weapon Assault Rifle Grenade Launcher Inventory Ion Engine Wheel Medium Laser Light Assault Rifle [Rating: 6] Favorites ----------- Power Ion Engine Engine Ion Engine Propulsion Wheel Treads Light Treads Wheel Wheel Utility Small Storage Unit Storage Small Storage Unit Weapon Assault Rifle Ballistic Gun Assault Rifle Launcher Grenade Launcher Build | -11 -10 ------- Run | Scr Mat Slots Evolved . | . . Power . | . . Propulsion . | . . Utility . | . . Weapon . | . . Parts Attached 6 | 4 2 Power 1 | 1 . Engine 1 | 1 . Core . | . . Reactor . | . . Propulsion 2 | 2 . Treads 1 | 1 . Leg . | . . Wheel 1 | 1 . Hover . | . . Flight . | . . Utility 1 | 1 . Device . | . . Storage 1 | 1 . Processor . | . . Hackware . | . . Protection . | . . Artifact . | . . Weapon 2 | . 2 Energy Gun . | . . Energy Cannon . | . . Ballistic Gun 1 | . 1 Ballistic Cannon . | . . Launcher 1 | . 1 Special Weapon . | . . Impact Weapon . | . . Slashing Weapon . | . . Piercing Weapon . | . . Special Melee Weapon . | . . Unidentified Prototypes . | . . Parts Lost 4 | . 4 Power . | . . Propulsion 2 | . 2 Utility . | . . Weapon 2 | . 2 Highest Loss Streak 4 | . 4 Average Slot Usage (%) 63 | . 63 Engine 14 | . 14 Treads 11 | . 11 Wheel 13 | . 13 Storage 14 | . 14 Ballistic Gun 5 | . 5 Launcher 3 | . 3 Naked Turns . | . . Heaviest Build 14 | 9 14 Greatest Support 20 | 20 10 Greatest Overweight (x) 1 | . 1 Average Overweight (x) . | . . Largest Inventory Capacity 6 | 6 6 Average Capacity 5 | 5 6 Most Carried 6 | 5 6 Average Carried 4 | 2 4 Final Capacity 6 | 6 6 Final Carried 5 | 5 5 Class Distribution -------------------- 100% | Mutant Dominant Class ---------------- Mutant | -10/Materials Resources | -11 -10 ----------- Run | Scr Mat Matter Collected 301 | 213 88 Remotely . | . . Salvage Created 103 | . 103 Parts 12 | . 12 Haulers Intercepted . | . . Recyclers Shooed . | . . Parts Field Recycled . | . . Retrieved Matter . | . . Parts Self-Destructed . | . . Prevented . | . . Kills | -11 -10 ------- Run | Scr Mat Combat Hostiles Destroyed 2 | . 2 Guns 1 | . 1 AOE 1 | . 1 Classes Destroyed 2 | . 2 Worker 1 | . 1 Abomination 2 | . 2 Best Kill Streak 3 | . 3 Combat Bots Only 2 | . 2 Max Kills in Single Turn 1 | . 1 Gunslinging . | . . Exploded 1 | . 1 Melee . | . . Uniques/NPCs Destroyed . | . . Combat | -11 -10 -------- Run | Scr Mat Damage Taken 729 | . 729 Core 256 | . 256 Absorbed by Shields . | . . Core Remaining (%) 100 | 100 . Volleys Fired 7 | . 7 Largest 2 | . 2 Hottest 50 | . 50 Shots Fired 10 | . 10 Gun 7 | . 7 Cannon . | . . Launcher 3 | . 3 Special . | . . Kinetic 7 | . 7 Thermal . | . . Explosive 3 | . 3 Electromagnetic . | . . Robot Hit Streak 4 | . 4 Robot Miss Streak 1 | . 1 Penetration Max . | . . Secondary Targets . | . . Shots Hit Robots 7 | . 7 Core Hits 11 | . 11 Critical Hits . | . . Critical Kills . | . . Critical Parts Destroyed . | . . Melee Attacks . | . . Impact . | . . Slashing . | . . Piercing . | . . Sneak Attacks . | . . Combat Hostiles . | . . Follow-up Attacks . | . . Damage Inflicted 240 | . 240 Guns 56 | . 56 Cannons . | . . Explosions 156 | . 156 Melee . | . . Ramming 28 | . 28 Kinetic 56 | . 56 Thermal . | . . Explosive 156 | . 156 Electromagnetic . | . . Impact . | . . Slashing . | . . Piercing . | . . Highest Corruption . | . . Average Corruption . | . . Corruption Purged . | . . Overload Shots . | . . Overflow Damage . | . . Projectiles . | . . Explosions . | . . Melee . | . . Knockbacks 2 | . 2 Impact 2 | . 2 Kinetic . | . . Secondary . | . . Self-Inflicted Damage 50 | . 50 Shots 1 | . 1 Rammed 14 | . 14 Targets Rammed 14 | . 14 Kicked . | . . Crushed . | . . Highest Temperature . | . . Average Temperature . | . . Received Heat Transfer . | . . Siege Activations . | . . Robots Corrupted . | . . Combat Hostiles . | . . Parts Fried . | . . Impact Corruptions . | . . Robots Melted . | . . Combat Hostiles . | . . Parts Melted . | . . Heat Transferred . | . . Parts Sabotaged . | . . Parts Stolen . | . . Parts Stripped . | . . Power Chain Reactions . | . . Missiles Intercepted . | . . Alert | -11 -10 ------- Run | Scr Mat Peak Influence 40 | . 40 Average Influence 6 | . 8 Maximum Alert Level . | . . Low Security (%) 100 | . . Level 1 . | . . Level 2 . | . . Level 3 . | . . Level 4 . | . . Level 5 . | . . High Security . | . . Max Security . | . . Squads Dispatched 2 | . 2 Investigation . | . . Extermination . | . . Reinforcement 2 | . 2 Assault . | . . Garrison . | . . Intercept . | . . Construction Impeded . | . . Haulers Reinforced . | . . Stealth | -11 -10 --------- Run | Scr Mat Distress Signals 1 | . 1 Communications Jammed . | . . Distress Signals . | . . Times Spotted 7 | . 7 Peak Tracking Total 6 | . 6 Tactical Retreats 1 | . 1 Traps | -11 -10 ------- Run | Scr Mat Traps Triggered . | . . Indirectly . | . . Trap Hack Attempts . | . . Triggered . | . . Disarmed . | . . Reprogrammed . | . . Reused . | . . Traps Extracted . | . . Installed . | . . Triggered . | . . Machines | -11 -10 ---------- Run | Scr Mat Machines Disabled 2 | . 2 Max in Single Turn 1 | . 1 Machines Sabotaged . | . . Garrisons Compromised . | . . Overloaded Fab Kills . | . . Fab Network Shutdowns . | . . Hacking | -11 -10 --------- Run | Scr Mat Machines Accessed 1 | . 1 Terminals 1 | . 1 Fabricators . | . . Repair Stations . | . . Recycling Units . | . . Scanalyzers . | . . Garrison Access . | . . Total Hacks 2 | . 2 Successful . | . . Failed 2 | . 2 Catastrophic . | . . Database Lockouts . | . . Manual . | . . Terminals 2 | . 2 Fabricators . | . . Repair Stations . | . . Recycling Units . | . . Scanalyzers . | . . Garrison Access . | . . Terminal Hacks . | . . Fabricator Hacks . | . . Repair Station Hacks . | . . Recycling Unit Hacks . | . . Scanalyzer . | . . Garrison Access Hacks . | . . Unauthorized Hacks . | . . Terminals . | . . Fabricators . | . . Repair Stations . | . . Recycling Units . | . . Scanalyzers . | . . Garrison Access . | . . Data Cores Recovered . | . . Used . | . . Hacking Detections 1 | . 1 Full Trace Events . | . . Feedback Events . | . . Feedback Blocked . | . . Robot Schematics Acquired . | . . Robots Built . | . . Matter . | . . Time . | . . Total Robot Build Rating . | . . Part Schematics Acquired . | . . Parts Built . | . . Matter . | . . Time . | . . Total Part Build Rating . | . . Parts Repaired . | . . Time . | . . Parts Recycled . | . . Recycled Matter . | . . Retrieved Matter . | . . Retrieved Components . | . . Parts Scanalyzed . | . . Part Schematics Acquired . | . . Parts Damaged . | . . Bothacking | -11 -10 ------------ Run | Scr Mat Used RIF Installer . | . . Robots Hacked . | . . Non-combat . | . . Combat . | . . Robot Hacks Applied . | . . Relay Couplers Released . | . . Robots Rewired . | . . Allies Hacked . | . . Hacks Repelled . | . . Allies | -11 -10 -------- Run | Scr Mat Total Allies . | . . Largest Group . | . . Highest-Rated Group . | . . Highest-Rated Ally . | . . Total Orders . | . . Ally Attacks . | . . Total Damage . | . . Kills . | . . Allies Corrupted . | . . Allies Melted . | . . Intel | -11 -10 ------- Run | Scr Mat Robot Analysis Total . | . . Derelict Logs Recovered . | . . Drone Launches . | . . Drone Recoveries . | . . Exploration | -11 -10 ------------- Run | Scr Mat Turns Passed 265 | 85 180 Spaces Moved 249 | 79 170 Core 8 | 8 . Treads 10 | 10 . Legs . | . . Wheels 231 | 61 170 Hover . | . . Flight . | . . Fastest Speed 50 | 50 80 Average Speed 84 | 87 83 Slowest Speed 160 | 160 90 Overloaded Moves . | . . Propulsion Burnouts . | . . Robots Hopped . | . . Cave-ins Triggered . | . . Exploration Rate (%) 18 | 5 32 Regions Visited 1 Branch Regions . Pre-discovered Areas . | . . Known Exits Taken . | . . Unknown Exits Taken 1 | 1 . Scrap Searched . | . . Spaces Dug . | . . Terrain Destroyed 20 | . 20 Melee . | . . Projectile . | . . AOE 20 | . 20 Actions | -11 -10 --------- Run | Scr Mat Total 290 | 95 195 Wait . | . . Move 248 | 78 170 Hop . | . . Pick Up 13 | 11 2 Fast Attach . | . . Attach 6 | 4 2 Detach . | . . Swap . | . . Drop 2 | 2 . Fire 7 | . 7 Melee . | . . Ram 14 | . 14 Kick . | . . Crush . | . . Escape Stasis . | . . Rewire . | . . Trap . | . . Miscellaneous . | . . Route ------- -11/Scrapyard -10/Materials (discovered 1 exit: [*Mat]) History --------- Turn | Location | Event 32 | -11/Scrapyard | Discovered new exit (range 16) 86 | -11/Scrapyard | Entered Materials 212 | -10/Materials | Discovered new exit (range 12) 251 | -10/Materials | Core integrity fell below 50% 263 | -10/Materials | Core integrity fell below 20% 266 | -10/Materials | Destroyed by Lesser Abomination with Shotgun Last Messages --------------- 00230_ Lgt. Treads destroyed. 00231_ Lesser Abomination forced to warp away. 00235_ 17 Matter blinks away. 00235_ Lesser Abomination absorbs Ion Engine. 00237_ Assault Rifle destroyed. 00238_ 20 Matter blinks away. 00238_ The unstable cave ceiling collapses. 00240_ Door malfunctions. 00247_ Connecting with Terminal... 00247_ Current location identified: Materials 00250_ Slammed into Lesser Abomination. 00251_ Lesser Abomination knocked back. 00252_ Slammed into Lesser Abomination. 00254_ Lesser Abomination knocked back. 00255_ Slammed into Lesser Abomination. 00255_ Destabilizing: Core damaged (-10). 00256_ Critical hit. 00256_ Wheel destroyed. 00256_ Slammed into Lesser Abomination. 00265_ Destabilizing: Core damaged (-5). Map ----- +----------------------------------------------------+ | ??????????????????????????????????????????? | | ??????????????????????????????????????????? | | ??????????????????????????????????????????? | | ??????????????????????????????????????????? | | ??????????????????????????????????????????? | | ??????????????????????????????????????????? | | ??????????????????????????????????????????? | | ??????????????????????????????????????????? | | ??????????? ????????????????????????????? | | ??????????? ????????????????????????????? | | ??????????? ????????????????????????????? | | ??????????# ##### ?????????????????????? | | ??????????# ???????????????????? | | ??????????# ???????????????????? | | ??????????# ??????????????????? | | ??????????# = ???????????????????? | | ??????????# ??????????????????? | | ??????????# #?????????????????? | | ??????????# #?????????????????? | | ??????????+ ?? #?????????????????? | | ??????????# ??? #?????????????????? | | ??????????# ???? #?????????????????? | | ???????#####+####### #?????????????????? | | ???????# %%%%%%A%# #?##??????????????? | | ???????# """ """%# ##T######?????????? | | ???????# """ """@/% ????????? | | ???????#"" """ """A# ????????? | | ???????#"T """ """%# ??????? | | ???????#"" """ """ # """ " ????? | | ???????# # " "" ?????? | | ???????#####/####### "" "Y" ?????? | | ????????# """ ?????? | | ????????# < ????? | | ????????# | % * #?????? | | ????????###########/############# #?????? | | ????????????????? #?##?????# #?????? | | ??????????????? """ ########## #?????? | | ??????????????# """ # # #?????? | | ??????????????# """ # # #?????? | | ??????????????# # # #?????? | | ??????????????# """ # # +?????? | | ??????????????# """ # # #?????? | | ??????????????# ????# + #?????? | | ??????????????#[ !????# # #?????? | | ??????????????####?????# # #?????? | | ???????????????????????# # #?????? | | ????########???????????#+######## #?????? | | ????# ############# ######## ####### | | ????# """ # # # # | | ????# """ # ^ # # + "" | +----------------------------------------------------+ Best States ------------- Heat Dissipation 25 Energy Generation 10 Energy Capacity 250 Matter Stores 300 Matter Capacity 300 Sight Range 16 Terrain Scan Density 10 Evasion (%) 44 Recoil Reduction 1 Item Schematics ----------------- None Robot Schematics ------------------ None Fabricated ------------ Nothing Alien Tech Used ----------------- None Achievements -------------- None Challenges ------------ None Game ------ Seed FlakImprinterScythe Manual? 0 Play Time 00:07:32 Cumulative 12.4 hours Start 2019.10.31 @ 16:13:55 End 2019.10.31 @ 16:18:36 Sessions 1 Manual Loads 0 Difficulty Rogue Special Mode Halloween2019/Abominations Game No. 54 Rogue 54 Adventurer 0 Explorer 3 Win Type - Total 0 Types 0/0/0/0/0/0/0 Lore% 15 Gallery% 15 Achievement% 12 Wizard Run 0 Options --------- ASCII 0 Keyboard 0 Movement Arrows Keybinds 0 Fullscreen 0 Font 14/Terminus Map View 76x50 Tactical HUD 1 Map Filters NONE Filters NONE Steam 1 RUN: 60c48da4-29d4-4ca0-8c8e-185d4a0beb1c